Cogmind - Beta 14 @@@ ROGUE MODE // 2025.01.13 @ 09:48:00 Player: mm79 Result: Destroyed by VW-3R0(R) with Subdweller Machine Gun Performance ------------- Evolutions (0) 0 Regions Visited (3) 600 Robots Destroyed (22) 110 Value Destroyed (437) 437 Prototype IDs (11) 220 Alien Tech Used (0) 0 Bonus (102) 102 TOTAL SCORE: 1469 Bonus ------- Follower Combat Kills 102 Cogmind --------- Core Integrity 0/250 Matter 260/300 Energy 213/250 System Corruption 0% Temperature Cool (0) Movement Treading (260) Ox1 Location -10/Subcaves Parts ------- > --- POWER (1) -------- Ion Engine > --- PROPULSION (2) --- Light Treads Spiked Treads > --- UTILITY (2) ------ Large Storage Unit Weapon Shielding > --- WEAPON (2) ------- Barrage Gun Battle Cannon > --- INVENTORY (15) --- Light Treads Arachnoskeleton Armored Wheel Armored Wheel Improved Heat Sink Large Matter Pod (150) Large Matter Pod (150) Subdweller Optics Seismic Detector Battle Rifle Battle Cannon Grenade Launcher Mining Laser Peak State ------------ > --- POWER ------------ Ion Engine > --- PROPULSION ------- Light Treads Armored Wheel > --- UTILITY ---------- Large Storage Unit Seismic Detector > --- WEAPON ----------- Barrage Gun Battle Cannon > --- INVENTORY -------- Light Treads Spiked Treads Arachnoskeleton Armored Wheel Improved Heat Sink Large Matter Pod Large Matter Pod Subdweller Optics Weapon Shielding Battle Rifle Battle Cannon Grenade Launcher Mining Laser [Rating: 15] Favorites ----------- Power Ion Engine Engine Ion Engine Propulsion Light Treads Treads Light Treads Wheel Armored Wheel Utility Seismic Detector Device Seismic Detector Storage Large Storage Unit Protection Weapon Shielding Weapon Light Assault Rifle Energy Gun Particle Gun Ballistic Gun Light Assault Rifle Ballistic Cannon Battle Cannon Launcher Grenade Launcher Special Weapon Mining Laser Build | -11 -10 -10 -10 ------- Run | Yrd Mat Min Sub Slots Evolved . | . . . . Power . | . . . . Propulsion . | . . . . Utility . | . . . . Weapon . | . . . . Parts Attached 37 | 9 15 5 8 Power 4 | 1 3 . . Engine 4 | 1 3 . . Core . | . . . . Reactor . | . . . . Propulsion 7 | 4 2 . 1 Treads 3 | 1 1 . 1 Leg . | . . . . Wheel 4 | 3 1 . . Hover . | . . . . Flight . | . . . . Utility 6 | 2 3 . 1 Device 3 | 1 2 . . Storage 2 | 1 1 . . Processor . | . . . . Hackware . | . . . . Protection 1 | . . . 1 Artifact . | . . . . Weapon 20 | 2 7 5 6 Energy Gun 9 | 1 3 2 3 Energy Cannon . | . . . . Ballistic Gun 3 | 1 1 . 1 Ballistic Cannon 1 | . . . 1 Launcher 2 | . . 2 . Special Weapon 5 | . 3 1 1 Impact Weapon . | . . . . Slashing Weapon . | . . . . Piercing Weapon . | . . . . Special Melee Weapon . | . . . . Unidentified Prototypes . | . . . . Parts Lost 1 | . . . 1 Power . | . . . . Propulsion . | . . . . Utility . | . . . . Weapon 1 | . . . 1 Highest Loss Streak 1 | . . . 1 To Critical Strikes . | . . . . Average Slot Usage (%) 94 | . 87 100 100 Engine 9 | . 2 14 14 Treads 14 | . 14 14 14 Wheel 14 | . 14 14 14 Device 14 | . 14 14 14 Storage 14 | . 14 14 14 Energy Gun 9 | . 7 12 10 Ballistic Gun 13 | . 16 14 9 Ballistic Cannon 2 | . . . 8 Special Weapon 1 | . 3 . . Peak Build Rating 15 | 6 10 10 15 Average Rating 9 | 5 7 9 12 On Entrance 6 | . 6 10 9 Naked Turns . | . . . . Heaviest Build 33 | 11 30 30 33 Greatest Support 20 | 10 20 12 12 Greatest Overweight (x) 3 | 3 2 2 2 Average Overweight (x) 1 | . . 2 2 Largest Inventory Capacity 15 | 8 15 15 15 Average Capacity 12 | 7 9 15 15 Most Carried 15 | 8 15 15 15 Average Carried 11 | 4 8 15 14 Final Capacity 15 | 8 15 15 15 Final Carried 15 | 8 15 15 15 Class Distribution -------------------- 100% | Mutant Dominant Class ---------------- Mutant | -10/Materials Mutant | -10/Mines Mutant | -10/Subcaves Resources | -11 -10 -10 -10 ----------- Run | Yrd Mat Min Sub Matter Collected 1093 | 302 205 173 413 Remotely . | . . . . Salvage Created 530 | 184 205 35 106 Parts 37 | 14 12 8 3 Haulers Intercepted . | . . . . Recyclers Shooed . | . . . . Parts Field Recycled . | . . . . Retrieved Matter . | . . . . Parts Self-Destructed 4 | . . . 4 Prevented . | . . . . Kills | -11 -10 -10 -10 ------- Run | Yrd Mat Min Sub Combat Hostiles Destroyed 16 | . 7 5 4 Guns 10 | . 7 . 3 Cannons 1 | . . . 1 AOE 5 | . . 5 . Classes Destroyed 5 | 2 2 . 1 Tunneler 5 | 5 . . . Recycler 1 | 1 . . . Swarmer 8 | . 3 5 . Grunt 5 | . 4 . 1 Subdweller 3 | . . . 3 Best Kill Streak 6 | 6 3 3 1 Combat Bots Only 3 | . 3 3 1 Max Kills in Single Turn 2 | 2 1 2 1 Gunslinging . | . . . . Exploded 2 | . . 2 . Melee . | . . . . Uniques/NPCs Destroyed . | . . . . Combat | -11 -10 -10 -10 -------- Run | Yrd Mat Min Sub Hostile Shots Fired 64 | . 24 11 29 Missed 17 | . 3 4 10 Damage Taken 788 | . 242 99 447 Core 255 | . 57 . 198 Absorbed by Shields . | . . . . Core Remaining (%) 100 | 100 . . . Volleys Fired 78 | 12 29 6 31 Largest 2 | 2 2 1 2 Hottest 125 | 60 100 100 125 Shots Fired 126 | 24 49 6 47 Gun 97 | 24 40 . 33 Cannon 13 | . . . 13 Launcher 3 | . . 3 . Special 13 | . 9 3 1 Kinetic 62 | 12 29 . 21 Thermal 49 | . 20 3 26 Explosive 3 | . . 3 . Electromagnetic 12 | 12 . . . Robot Hit Streak 16 | 8 14 2 16 Robot Miss Streak 6 | 3 6 1 1 Penetration Max . | . . . . Secondary Targets . | . . . . Shots Hit Robots 68 | 15 25 2 26 Core Hits 36 | 8 15 6 7 Critical Kills . | . . . . Critical Parts Destroyed . | . . . . Critical Strikes . | . . . . Melee Attacks . | . . . . Impact . | . . . . Slashing . | . . . . Piercing . | . . . . Sneak Attacks . | . . . . Combat Hostiles . | . . . . Follow-up Attacks . | . . . . Damage Inflicted 1253 | 296 267 245 445 Guns 718 | 153 267 . 298 Cannons 147 | . . . 147 Explosions 388 | 143 . 245 . Melee . | . . . . Ramming . | . . . . Kinetic 401 | 34 129 . 238 Thermal 488 | 143 138 . 207 Explosive 245 | . . 245 . Electromagnetic 119 | 119 . . . Impact . | . . . . Slashing . | . . . . Piercing . | . . . . Highest Corruption . | . . . . Average Corruption . | . . . . Corruption Purged . | . . . . Corruption Blocked . | . . . . Overload Shots . | . . . . Overflow Damage . | . . . . Projectiles . | . . . . Explosions . | . . . . Melee . | . . . . Knockbacks . | . . . . Impact . | . . . . Kinetic . | . . . . Secondary . | . . . . Self-Inflicted Damage 29 | . . 29 . Shots 1 | . . 1 . Rammed . | . . . . Targets Rammed . | . . . . Kicked . | . . . . Crushed . | . . . . Highest Temperature 122 | 20 122 . . Average Temperature 31 | 10 43 . . Received Heat Transfer 201 | . 90 9 102 Siege Activations . | . . . . Robots Corrupted . | . . . . Combat Hostiles . | . . . . Parts Fried . | . . . . Impact Corruptions . | . . . . Robots Melted . | . . . . Combat Hostiles . | . . . . Parts Melted 1 | . . . 1 Heat Transferred 793 | 100 370 . 323 Parts Sabotaged . | . . . . Parts Stolen . | . . . . Parts Stripped . | . . . . Power Chain Reactions 3 | 3 . . . Alert | -11 -10 -10 -10 ------- Run | Yrd Mat Min Sub Peak Influence 241 | 30 241 145 . Initial 49 | . 19 49 . Average 115 | 15 130 111 . Maximum Alert Level 1 | . 1 . . Low Security (%) 96 | 100 92 100 . Level 1 3 | . 7 . . Level 2 . | . . . . Level 3 . | . . . . Level 4 . | . . . . Level 5 . | . . . . High Security . | . . . . Max Security . | . . . . Squads Dispatched 2 | . 2 . . Investigation 2 | . 2 . . Extermination . | . . . . Reinforcement . | . . . . Assault . | . . . . Garrison . | . . . . Intercept . | . . . . Searches Triggered . | . . . . Construction Impeded . | . . . . Haulers Reinforced . | . . . . Active Scanning Responses . | . . . . Cargo Convoy Interrupts . | . . . . Stealth | -11 -10 -10 -10 --------- Run | Yrd Mat Min Sub Distress Signals 5 | . 5 . . Communications Jammed . | . . . . Distress Signals . | . . . . Times Spotted 35 | . 19 6 10 Peak Tracking Total 5 | . 5 3 3 Tactical Retreats 5 | . 5 . . Traps | -11 -10 -10 -10 ------- Run | Yrd Mat Min Sub Traps Triggered . | . . . . Indirectly . | . . . . Trap Hack Attempts . | . . . . Triggered . | . . . . Disarmed . | . . . . Reprogrammed . | . . . . Reused . | . . . . Traps Extracted . | . . . . Installed . | . . . . Triggered . | . . . . Machines | -11 -10 -10 -10 ---------- Run | Yrd Mat Min Sub Machines Disabled 1 | . . . 1 Max in Single Turn 1 | . . . 1 Machines Repaired . | . . . . Machines Dismantled . | . . . . Machines Sabotaged . | . . . . Overloaded Fab Kills . | . . . . Hacking | -11 -10 -10 -10 --------- Run | Yrd Mat Min Sub Machines Accessed 10 | . 9 . 1 Terminals 7 | . 7 . . Fabricators . | . . . . Repair Stations . | . . . . Recycling Units 2 | . 2 . . Scanalyzers . | . . . . Garrison Access . | . . . . Total Hacks 25 | . 24 . 1 Successful 14 | . 13 . 1 Failed 11 | . 11 . . Catastrophic . | . . . . Database Lockouts . | . . . . Manual 21 | . 21 . . Terminals 20 | . 20 . . Fabricators . | . . . . Repair Stations . | . . . . Recycling Units 4 | . 4 . . Scanalyzers . | . . . . Garrison Access . | . . . . Terminal Hacks 3 | . 2 . 1 Terminal Index 1 | . 1 . . Locate Traps 1 | . 1 . . Derelict Proto ID Bank 1 | . . . 1 Fabricator Hacks . | . . . . Repair Station Hacks . | . . . . Recycling Unit Hacks . | . . . . Scanalyzer . | . . . . Garrison Access Hacks . | . . . . Unauthorized Hacks 11 | . 11 . . Terminals 7 | . 7 . . Botnet 1 | . 1 . . Operators 1 | . 1 . . Skim 5 | . 5 . . Fabricators . | . . . . Repair Stations . | . . . . Recycling Units 4 | . 4 . . Reject 2 | . 2 . . Tunnel 2 | . 2 . . Scanalyzers . | . . . . Garrison Access . | . . . . Data Cores Recovered . | . . . . Used . | . . . . Hacking Detections 8 | . 8 . . Full Trace Events . | . . . . Feedback Events . | . . . . Feedback Blocked . | . . . . Robot Schematics Acquired . | . . . . Robots Built . | . . . . Authchips . | . . . . Time . | . . . . Total Robot Build Rating . | . . . . Part Schematics Acquired . | . . . . Parts Built . | . . . . Authchips . | . . . . Time . | . . . . Total Part Build Rating . | . . . . Parts Repaired . | . . . . Time . | . . . . Parts Recycled . | . . . . Recycled Matter . | . . . . Retrieved Matter . | . . . . Retrieved Components . | . . . . Parts Scanalyzed . | . . . . Part Schematics Acquired . | . . . . Parts Damaged . | . . . . Bothacking | -11 -10 -10 -10 ------------ Run | Yrd Mat Min Sub Used RIF Installer . | . . . . Robots Hacked . | . . . . Non-combat . | . . . . Combat . | . . . . Robot Hacks Applied . | . . . . Relay Couplers Released . | . . . . Fabnet Peak Effective % . | . . . . Robots Rewired . | . . . . Allies Hacked . | . . . . Hacks Repelled . | . . . . Allies | -11 -10 -10 -10 -------- Run | Yrd Mat Min Sub Total Allies 3 | . . 3 . Largest Group 3 | . . 3 3 Highest-Rated Group 40 | . . 40 40 Highest-Rated Ally 16 | . . 16 16 Total Orders . | . . . . Ally Attacks 34 | . . 4 30 Total Damage 427 | . . 62 365 Kills 4 | . . 1 3 Allies Corrupted . | . . . . Allies Melted . | . . . . Intel | -11 -10 -10 -10 ------- Run | Yrd Mat Min Sub Robot Analysis Total . | . . . . Derelict Logs Recovered . | . . . . Drone Launches . | . . . . Drone Recoveries . | . . . . Exploration | -11 -10 -10 -10 ------------- Run | Yrd Mat Min Sub Turns Passed 2387 | 109 927 596 755 Spaces Moved 1708 | 41 683 460 524 Core 21 | 21 . . . Treads 42 | . 42 . . Legs . | . . . . Wheels 1645 | 20 641 460 524 Hover . | . . . . Flight . | . . . . Fastest Speed 50 | 50 80 120 120 Average Speed 110 | 103 97 120 120 Slowest Speed 240 | 200 240 120 120 Overloaded Moves . | . . . . Propulsion Burnouts . | . . . . Robots Hopped . | . . . . Cave-ins Triggered . | . . . . Exploration Rate (%) 56 | 3 92 91 38 Regions Visited 3 Branch Regions 2 Pre-discovered Areas 4 | . 4 . . Known Exits Taken 1 | . . 1 . Unknown Exits Taken 2 | 1 1 . . Scrap Searched 3 | . . 1 2 Spaces Dug 9 | . 9 . . Terrain Destroyed 28 | 4 9 15 . Melee . | . . . . Projectile 9 | . 9 . . AOE 19 | 4 . 15 . Terrain Rammed . | . . . . Walls Destroyed . | . . . . Machines Disabled . | . . . . Actions | -11 -10 -10 -10 --------- Run | Yrd Mat Min Sub Total 2066 | 83 888 489 606 Wait 183 | 9 136 19 19 Move 1705 | 40 682 459 524 Hop . | . . . . Pick Up 32 | 8 14 . 10 Fast Attach 11 | 8 1 . 2 Attach 4 | . 3 . 1 Detach 5 | 2 2 . 1 Swap 22 | 1 11 5 5 Drop 26 | 3 10 . 13 Fire 78 | 12 29 6 31 Melee . | . . . . Ram . | . . . . Kick . | . . . . Crush . | . . . . Escape Stasis . | . . . . Rewire . | . . . . Trap . | . . . . Miscellaneous . | . . . . Route ------- -11/Scrapyard -10/Materials (discovered 6 exits: *Mat x3 / [*Min x2] / Sub) -10/Mines (discovered 3 exits: *Mat x2 / *Sub) -10/Subcaves History --------- Turn | Location | Event 47 | -11/Scrapyard | Discovered new exit (range 16) 110 | -11/Scrapyard | Entered Materials 228 | -10/Materials | Discovered new exit (range 7) 301 | -10/Materials | Build established: Mutant 312 | -10/Materials | Discovered new exit (range 13) 623 | -10/Materials | Discovered new exit (range 16) 715 | -10/Materials | Identified exit to Materials 770 | -10/Materials | Learned location of Mines (-8) 835 | -10/Materials | Discovered new exit (range 16) 873 | -10/Materials | Learned location of 2 exits from Mines 887 | -10/Materials | Learned 4 Subcaves zone layouts 893 | -10/Materials | Learned location of 2 exits from Mines 907 | -10/Materials | Identified exit to Subcaves 1037 | -10/Materials | Entered Mines 1331 | -10/Mines | Assisted by bots powering up and referring to "LRC-V3" 1633 | -10/Mines | Entered Subcaves 1633 | -10/Subcaves | Accompanied by 3 allies 1699 | -10/Subcaves | A swath of the cavern ceiling suddenly collapsed 1785 | -10/Subcaves | A swath of the cavern ceiling suddenly collapsed 1909 | -10/Subcaves | Shifting Twisted Machinery released Battle Cannon 1913 | -10/Subcaves | Shifting Twisted Machinery released Barrage Gun 1995 | -10/Subcaves | Core integrity fell below 50% 2101 | -10/Subcaves | Visited 4L-MR0's lab 2118 | -10/Subcaves | Found Arachnoskeleton 2327 | -10/Subcaves | Core integrity fell below 20% 2388 | -10/Subcaves | Destroyed by VW-3R0(R) with Subdweller Machine Gun Last Messages --------------- Meta Core Arachnoskeleton Cargo Legs Tripod Weapons Platform Flightbrick Gun Armor Tower Shield Power Bank Rainbow Chip VL-GR5's Exoskeleton "Deathgrip" Powered Cannon 02112_ Testing Chamber breached. 02116_ Dropped Lgt. Assault Rifle. 02117_ Dropped Sml. Laser. 02117_ Dropped Particle Gun. 02118_ 4L-MR0 mumbles: "I'm surprised some of them are even willing to come in here given their fear of my usual visitors." 02118_ Acquired Arachnoskeleton. [Achievement: First Step to Greatness] Map ----- +----------------------------------------------------+ | ?????????????????????????????????????????????????? | | ?????????????????????????????????????????????????? | | ?????????????????????????????????????????????????? | | ?????????????????????????????????????????????????? | | ?????????????????????????????????????????????????? | | ?????????????????????????????????????????????????? | | ?????????????????????????????????????????????????? | | ?????????????????????????????????????????????????? | | ?????????????????????????????????????????????????? | | ?????????????????????????????????????????????????? | | ?????????????????????????????????????????????????? | | ?????????????????????????????????????????????????? | | ?????????????????????????????????????????????????? | | ?????????????????????????????????????????????????? | | ?????????????????????????????????????????????????? | | ?????????????????????????????????????????????????? | | ?????????????????????????????????????????????????? | | ?????????????????????????????????????????????????? | | ?????????????????????????????????????????????????? | | ?????????????????????????????????????????????????? | | ?????????????????????????????????????????????????? | | ?????????????????????????????????????????????????? | | ?????????????????????????????????????????????????? | | ?????????????????????????????????????????????????? | | ????????????????????????#####????????????????????? | | ????????????????????????#@ ##???????????????????? | | ????????????????????????## ###?????????????????? | | ?????????????????????????# ##????????????????? | | ?????????????????????????# R #????????????????? | | ????????????????????????## #????????????????? | | ????????????????????????# ##????????????????? | | ???????????????????????## #####?????????????????? | | ????????????????????#### #####??????????????????? | | ???????????????????## ## ###????????????????? | | ??????????????????## ##???????????????? | | ??????????????????# #???????????????? | | ??????????????????# ##??????????????? | | ??????????????????## ##### #??????????????? | | ??????????????????## #???# #??????????????? | | ??????????????????# #??## #??????????????? | | ??????????????????# #### ##??????????????? | | ??????????????????## ##???????????????? | | ???????????????????## ##????????????????? | | ????????????????????# # # #?????????????????? | | ????????????????????# ##### #?????????????????? | | ???????????????????## ##???###?????????????????? | | ???????????????????# ##???## ##?###????????????? | | ??????????????????## #???## ### ##???????????? | | ?????????????###??# #?### ## ##??????????? | | ?????????????? "?## ### ##???###???# | +----------------------------------------------------+ Best States ------------- Heat Dissipation 35 Energy Generation 10 Energy Capacity 250 Matter Stores 300 Matter Capacity 300 Sight Range 16 Terrain Scan Density 10 Evasion (%) 50 Recoil Reduction 1 Item Schematics ----------------- None Robot Schematics ------------------ None Fabricated ------------ Nothing Alien Tech Used ----------------- None Achievements -------------- First Step to Greatness Challenges ------------ None Game ------ Seed GatlingElectrostormTreads Manual? 0 Play Time 00:40:12 Cumulative 19.0 hours Start 2025.01.13 @ 09:05:06 End 2025.01.13 @ 09:48:00 Sessions 1 Manual Loads 0 Difficulty Rogue Special Mode None Game No. 17 Rogue 17 Adventurer 0 Explorer 0 Win Type - Total 0 Types 0/0/0/0/0/0/0/0/0 Lore% 7 Gallery% 16 Achievement% 19 Wizard Run 0 Options --------- Layout 1 ASCII 0 Keyboard 0 Movement Mouse Keybinds 0 Fullscreen 1 Font 24/Smallcaps Map View 50x35 Zoom Use 0% Tactical HUD 1 Map Filters NONE Filters NONE Steam 0 RUN: 97760c9e-bce9-4e46-bf66-7a446cd82561